Workbook

Sheet Sheet1
A1: INSTRUCTIONS: Use this form when a single information collection document involves multiple reporting and recordkeeping requirements. The totals of the figures in cols. should be entered in item 13 of OMB-83-I: cols. (D) &/or (I) = 13a (respondent is only counted once); cols. F & I = 13b; cols. H & K = 13c. (F)Total/(D)Total = (E)Average (H)Total/(F)Total = (G)Average (K)Total/(I)Total = (J)Average NOTE: The columns will calculate automatically. If Col. E's response is something other than annually, i.e., 1/6 years, list as "1/6" & decimal will display. | I1: TITLE OF INFORMATION COLLECTION DOCUMENT | O1: OMB NO. | P1: 0560-0237
I3: FLP - Direct Loan Making
O4: DATE PREPARED
O5: 2022-11-30
A10: IDENTIFICATION OF REPORTING OR RECORDKEEPING REQUIREMENT | H10: ANNUAL BURDEN
H12: REPORTS | N12: RECORDS | Q12: RESPONDENT COST
L14: TOTAL BURDEN HOURS | P14: TOTAL
G15: FORMS NO (S) | H15: NO. OF | I15: NO OF | J15: TOTAL ANNUAL | K15: HOURS | L15: (Col. F x G) | N15: NO. OF | O15: ANNUAL | P15: RECORD- | Q15: COST | R15: TOTAL
A16: SECTION OF | B16: DESCRIPTION | G16: (If "none" | H16: RESPONDENTS | I16: RESPONSES | J16: RESPONSES | K16: PER | L16: (H) | N16: RECORD- | O16: HOURS PER | P16: KEEPING HOURS | Q16: PER | R16: COST
A17: REGS. | G17: so state) | I17: PER | J17: (Col. D x E) | K17: RESPONSE | N17: KEEPERS | O17: RECORD- | P17: (Col. I x J) | Q17: HOUR | R17: (Col. H x L)
I18: RESPONDENT | L18: EXEMPT | M18: NON-EXEMPT | O18: KEEPER
A19: (A) | B19: (B) | G19: (C) | H19: (D) | I19: (E) | J19: (F) | K19: (G) | N19: (I) | O19: (J) | P19: (K) | Q19: (L) | R19: (M)
A20: 764.51(b), 767.151 | B20: Request for loan making assistance/LM - Individuals and married applicants | G20: FSA-2001 | H20: =26125+5593 -> 31,718 | I20: 0.751 | J20: =SUM(H20*I20) -> 23,820 | K20: =160/60 -> 2.667 | M20: =SUM(J20*K20) -> 63,521 | Q20: $98.21 | R20: =SUM(M20*Q20) -> 6,238,356 | S20: *
A21: 764.51(b), 767.151 | B21: Request for Direct Loan Assistance/LM - Entity | G21: FSA-2001 | H21: =7429+10 -> 7,439 | I21: 0.333 | J21: =SUM(H21*I21) -> 2,477 | K21: =190/60 -> 3.167 | M21: =SUM(J21*K21) -> 7,844 | Q21: $98.21 | R21: =SUM(M21*Q21) -> 770,401 | S21: *
A22: 765.403 (a)(1) | B22: Request for Direct Loan Assistance/transfer & assumption (ind.) | G22: FSA-2001 | H22: 923 | I22: 0.751 | J22: 693 | K22: =160/60 -> 2.667 | M22: 1,848 | Q22: $98.21 | R22: 181,537 | S22: *
A23: 765.403 (a)(1) | B23: Request for Direct Loan Assistance/transfer & assumption (ent) | G23: FSA-2001 | H23: 232 | I23: 0.333 | J23: 77 | K23: =190/60 -> 3.167 | M23: 245 | Q23: $98.21 | R23: 24,026 | S23: *
A24: 766.102 (a)(2) | B24: Request for Direct Loan Assistance/PLS - individuals & married | G24: FSA-2001 | H24: 4,351 | I24: 0.751 | J24: 3,268 | K24: =30/60 -> 0.500 | M24: 1,634 | Q24: $98.21 | R24: 160,456 | S24: *
A25: 766.102 (a)(2) | B25: Request for Direct Loan Assistance/PLS - entity | G25: FSA-2001 | H25: 1,022 | I25: 0.333 | J25: 340 | K25: =60/60 -> 1.000 | M25: 340 | Q25: $98.21 | R25: 33,423 | S25: *
A26: 766.204 (a)(2) | B26: Request for Direct Loan Assistance/SA individuals & married app. | G26: FSA-2001 | H26: 82 | I26: 0.751 | J26: 62 | K26: =30/60 -> 0.500 | M26: 31 | Q26: $98.21 | R26: 3,024 | S26: *
A27: 766.204 (a)(2) | B27: Request for Direct Loan Assistance/SA - entity | G27: FSA-2001 | H27: 18 | I27: 0.333 | J27: 6 | K27: =60/60 -> 1.000 | M27: 6 | Q27: $98.21 | R27: 589 | S27: *
A28: 764.51(b)(4) | B28: Three-Year Financial History - existing applicants | G28: FSA-2002 | H28: 4,896 | I28: 1.000 | J28: =SUM(H28*I28) -> 4,896 | K28: =30/60 -> 0.500 | M28: =SUM(J28*K28) -> 2,448 | Q28: $98.21 | R28: =SUM(M28*Q28) -> 240,418
A29: 1436.4 | B29: Three-Year Financial History - FSFL | G29: FSA-2002 | H29: 285 | I29: 1.000 | J29: 285 | K29: 0.500 | L29: =SUM(J29*K29) -> 143 | M29: 0 | Q29: $98.21 | R29: 0
A30: 766.102 (a)(3) | B30: Three-Year Financial History - PLS | G30: FSA-2002 | H30: 1,254 | I30: 1.000 | J30: 1,254 | K30: 0.500 | M30: 627 | Q30: $98.21 | R30: 61,578
A31: 764.51(b)(5) | B31: Three-Year Production History - existing applicants | G31: FSA-2003 | H31: 4,896 | I31: 1.000 | J31: =SUM(H31*I31) -> 4,896 | K31: 0.500 | M31: =SUM(J31*K31) -> 2,448 | Q31: $98.21 | R31: =SUM(M31*Q31) -> 240,418
A32: 1436.4 | B32: Three-Year Production History - FSFL | G32: FSA-2003 | H32: 250 | I32: 1.000 | J32: 250 | K32: 0.500 | L32: =SUM(J32*K32) -> 125 | M32: 0 | Q32: $98.21 | R32: 0
A33: 766.102 (a)(3) | B33: Three-Year Production History - PLS | G33: FSA-2003 | H33: 1,242 | I33: 1.000 | J33: 1,242 | K33: 0.500 | M33: =SUM(J33*K33) -> 621 | Q33: $98.21 | R33: 60,988
A34: 765.205 (a)(6) | B34: Authorization to Release Information - subordination | G34: FSA-2004 | H34: 8,653 | I34: 1.000 | J34: 8,653 | K34: =10/60 -> 0.167 | M34: 1,442 | Q34: $98.21 | R34: =SUM(M34*Q34) -> 141,635
A35: 765.404 (b)(1) | B35: Authorization to Release Information - transfer & assumption | G35: FSA-2004 | H35: 783 | I35: 1.000 | J35: 783 | K35: 0.167 | M35: 131 | Q35: $98.21 | R35: 12,816
A36: 1956.66 | B36: Authorization to Release Information - debt settlement | G36: FSA-2004 | H36: 2,652 | I36: 1.000 | J36: 2,652 | K36: 0.167 | M36: 442 | Q36: $98.21 | R36: 43,409
A37: 1436.4 | B37: Authorization to Release Information - FSFL | G37: FSA-2004 | H37: 1,500 | I37: 1.000 | J37: 1,500 | K37: 0.167 | L37: =SUM(J37*K37) -> 250 | M37: 0 | Q37: $98.21 | R37: 0
A38: 766.102 (a)(6) | B38: Authorization to Release Information - PLS | G38: FSA-2004 | H38: 3,560 | I38: 1.000 | J38: 3,560 | K38: 0.167 | M38: 593 | Q38: $98.21 | R38: 58,271
A39: 766.152 (b)(5) | B39: Authorization to Release Information - Homestead protection | G39: FSA-2004 | H39: 22 | I39: 1.000 | J39: 22 | K39: 0.167 | M39: 4 | Q39: $98.21 | R39: 360
A40: 766.204 (a)(2) | B40: Authorization to Release Information - SA amortization | G40: FSA-2004 | H40: 68 | I40: 1.000 | J40: 68 | K40: 0.167 | M40: 11 | Q40: $98.21 | R40: 1,113
A41: 765.205 (a)(6) | B41: Creditor List - subordination | G41: FSA-2005 | H41: 8,652 | I41: 1.000 | J41: 8,652 | K41: =20/60 -> 0.333 | M41: 2,884 | Q41: $98.21 | R41: 283,238
A42: 765.404 (b)(1) | B42: Creditor List - transfer & assumption - ineligible | G42: FSA-2005 | H42: 705 | I42: 1.000 | J42: 705 | K42: 0.333 | M42: 235 | Q42: $98.21 | R42: 23,079
A43: 766.102 (a) | B43: Creditor List - PLS | G43: FSA-2005 | H43: 3,546 | I43: 1.000 | J43: 3,546 | K43: 0.333 | M43: 1,182 | Q43: $98.21 | R43: 116,084
A44: 766.151 (a)(3) | B44: Creditor List - homestead protection | G44: FSA-2005 | H44: 22 | I44: 1.000 | J44: 22 | K44: 0.333 | M44: 7 | Q44: $98.21 | R44: 720
A45: 766.204 (a)(2) | B45: Creditor List - SA amortization | G45: FSA-2005 | H45: 68 | I45: 1.000 | J45: 68 | K45: 0.333 | M45: 23 | Q45: $98.21 | R45: 2,226
A46: 765.205 (a)(2) | B46: Property Owned and Leased - subordination | G46: FSA-2006 | H46: 8,658 | I46: 1.000 | J46: 8,658 | K46: =30/60 -> 0.500 | M46: 4,329 | Q46: $98.21 | R46: 425,151
A47: 766.102 (a)(7) | B47: Property Owned and Leased - PLS | G47: FSA-2006 | H47: 3,546 | I47: 1.000 | J47: 3,546 | K47: 0.500 | M47: 1,773 | Q47: $98.21 | R47: 174,126
A48: 766.204 (a)(2) | B48: Property Owned and Leased - SA amortization | G48: FSA-2006 | H48: 74 | I48: 1.000 | J48: 74 | K48: 0.500 | M48: 37 | Q48: $98.21 | R48: 3,634
A49: 764.402 | B49: Cosigner Application and Agreement | G49: FSA-2007 | H49: 920 | I49: 1.000 | J49: 920 | K49: =15/60 -> 0.250 | M49: 230 | Q49: $98.21 | R49: 22,588 | S49: *
A50: 764.51(b)(8) | B50: Verification of Income - loan making | G50: FSA-2014 | H50: 19,589 | I50: 1.000 | J50: 19,589 | K50: =15/60 -> 0.250 | M50: 4,897 | Q50: $98.21 | R50: 480,959 | S50: *
A51: 765.205 (a)(4) | B51: Verification of Income - subordination | G51: FSA-2014 | H51: 6,724 | I51: 1.000 | J51: 6,724 | K51: =15/60 -> 0.250 | M51: 1,681 | Q51: $98.21 | R51: 165,091 | S51: *
A52: 765.404 (b)(1) | B52: Verification of Income - transfer & assumption - Ineligible | G52: FSA-2014 | H52: 164 | I52: 1.000 | J52: 164 | K52: 0.250 | M52: 41 | Q52: $98.21 | R52: 4,027 | S52: *
A53: 766.102 (a)(6) | B53: Verification of Income - PLS | G53: FSA-2014 | H53: 2,759 | I53: 1.000 | J53: 2,759 | K53: 0.250 | M53: 690 | Q53: $98.21 | R53: 67,740 | S53: *
A54: 766.151 (b)(5) | B54: Verification of Income - Homestead protection | G54: FSA-2014 | H54: 19 | I54: 1.000 | J54: 19 | K54: 0.250 | M54: 5 | Q54: $98.21 | R54: 466 | S54: *
A55: 766.204 (a)(2) | B55: Verification of Income - SA amortization | G55: FSA-2014 | H55: 51 | I55: 1.000 | J55: 51 | K55: 0.250 | M55: 13 | Q55: $98.21 | R55: 1,252 | S55: *
A56: 1956.66 | B56: Verification of Debts and Assets - debt settlement | G56: FSA-2015 | H56: 4,225 | I56: 3.000 | J56: 12,675 | K56: =20/60 -> 0.333 | M56: 4,225 | Q56: $98.21 | R56: 414,937 | S56: *
A57: 1436.5 (a)(1) | B57: Verification of Debts and Assets - FSFL | G57: FSA-2015 | H57: 2,800 | I57: 3.000 | J57: 8,400 | K57: =20/60 -> 0.333 | L57: =SUM(J57*K57) -> 2,800 | M57: 0 | Q57: $98.21 | R57: 0 | S57: *
A58: 764.51(b)(12) | B58: Verification of Debts and Assets - loan making - OL & EM | G58: FSA-2015 | H58: 34,501 | I58: 3.000 | J58: 103,503 | K58: 0.333 | M58: 34,501 | Q58: $98.21 | R58: 3,388,343 | S58: *
A59: 764.51(b)(12) | B59: Verification of Debts and Assets - loan making - FO | G59: FSA-2015 | H59: 4,332 | I59: 3.000 | J59: 12,996 | K59: 0.333 | M59: 4,332 | Q59: $98.21 | R59: 425,446 | S59: *
A60: 764.51 (d)(2) | B60: Verification of Debts and Assets - youth loans | G60: FSA-2015 | H60: 435 | I60: 3.000 | J60: 1,305 | K60: 0.333 | M60: 435 | Q60: $98.21 | R60: 42,721 | S60: *
A61: 765.205 (a)(6) | B61: Verification of Debts and Assets - subordination | G61: FSA-2015 | H61: 13,898 | I61: 3.000 | J61: 41,694 | K61: 0.333 | M61: 13,898 | Q61: $98.21 | R61: 1,364,923 | S61: *
A62: 765.404 (b)(1) | B62: Verification of Debts and Assets - transfer & assumption | G62: FSA-2015 | H62: 298 | I62: 3.000 | J62: 894 | K62: 0.333 | M62: 298 | Q62: $98.21 | R62: 29,267 | S62: *
A63: 766.102 (a)(8) | B63: Verification of Debts and Assets - PLS | G63: FSA-2015 | H63: 5,355 | I63: 3.000 | J63: 16,065 | K63: 0.333 | M63: 5,355 | Q63: $98.21 | R63: 525,915 | S63: *
A64: 766.204 (a)(2) | B64: Verification of Debts and Assets - SA amortization | G64: FSA-2015 | H64: 107 | I64: 3.000 | J64: 321 | K64: 0.333 | M64: 107 | Q64: $98.21 | R64: 10,508 | S64: *
A65: 766.353 (a) | B65: Verification of Debts and Assets - voluntary conveyance | G65: FSA-2015 | H65: 30 | I65: 3.000 | J65: 90 | K65: 0.333 | M65: 30 | Q65: $98.21 | R65: 2,946
A66: 764.402(a)(1) | B66: Promissory Note - Individual | G66: FSA-2026 | H66: 23,202 | I66: 1.000 | J66: 23,202 | K66: =20/60 -> 0.333 | M66: 7,734 | Q66: $98.21 | R66: 759,556
A67: 764.402(a)(1) | B67: Promissory Note - Entity Members | G67: FSA-2026 | H67: 6,451 | I67: 1.000 | J67: =SUM(H67*I67) -> 6,451 | K67: =20/60 -> 0.333 | M67: =SUM(J67*K67) -> 2,150 | Q67: $98.21 | R67: 211,184
A68: 766.106, 766.204 | B68: Promissory Note - PLS - individual | G68: FSA-2026 | H68: 2,615 | I68: 1.000 | J68: 2,615 | K68: =20/60 -> 0.333 | M68: 872 | Q68: $98.21 | R68: 85,606
A69: 766.106, 766.204 | B69: Promissory Note - PLS - entity members | G69: FSA-2026 | H69: 835 | I69: 1.000 | J69: 835 | K69: 0.333 | M69: 278 | Q69: $98.21 | R69: 27,335
A70: 764.402 (a)(4) | B70: Promissory Note - cosigner | G70: FSA-2026 | H70: 222 | I70: 1.000 | J70: 222 | K70: 0.333 | M70: 74 | Q70: $98.21 | R70: 7,268
A71: 764.254, 766.109 | B71: Supplemental Payment Agreement | G71: FSA-2027 | H71: 656 | I71: 1.000 | J71: 656 | K71: =15/60 -> 0.250 | M71: 164 | Q71: $98.21 | R71: 16,106
A72: 764.305 | B72: Security Agreement - youth (lien on products financed) | G72: FSA-2028 | H72: 3,989 | I72: 1.000 | J72: 3,989 | K72: =20/60 -> 0.333 | M72: 1,330 | Q72: $98.21 | R72: 130,587
A73: 764.103 (b)(1) | B73: Security Agreement - pledge of third party | G73: FSA-2028 | H73: 413 | I73: 1.000 | J73: 413 | K73: =20/60 -> 0.333 | M73: 138 | Q73: $98.21 | R73: 13,520
A74: 764.103 (c) | B74: Security Agreement - 150 percent requirement | G74: FSA-2028 | H74: 1,209 | I74: 1.000 | J74: 1,209 | K74: 0.333 | M74: 403 | Q74: $98.21 | R74: 39,579
A75: 764.103 (c) | B75: Security Agreement - lien on non-essential assets | G75: FSA-2028 | H75: 162 | I75: 1.000 | J75: 162 | K75: 0.333 | M75: 54 | Q75: $98.21 | R75: 5,303
A76: 764.255 (b) | B76: Security Agreement - OL lien on property financed | G76: FSA-2028 | H76: 15,325 | I76: 1.000 | J76: 15,325 | K76: 0.333 | M76: 5,108 | Q76: $98.21 | R76: 501,689
A77: 765.303 (a)(4) | B77: Security Agreement - add livestock when crops to be fed | G77: FSA-2028 | H77: 2,377 | I77: 1.000 | J77: 2,377 | K77: 0.333 | M77: 792 | Q77: $98.21 | R77: =SUM(M77*Q77) -> 77,815
A78: 765.303 (c)(2) | B78: Security Agreement - lien on new property in exchange | G78: FSA-2028 | H78: 4,431 | I78: 1.000 | J78: 4,431 | K78: 0.333 | M78: 1,477 | Q78: $98.21 | R78: 145,056
A79: 766.56 | B79: Security Agreement - Delinquent DSA lien on all assets | G79: FSA-2028 | H79: 133 | I79: 1.000 | J79: 133 | K79: 0.333 | M79: 44 | Q79: $98.21 | R79: 4,354
A80: 766.112 (a) | B80: Security Agreement - PLS lien on all assets | G80: FSA-2028 | H80: 343 | I80: 1.000 | J80: 343 | K80: 0.333 | M80: 114 | Q80: $98.21 | R80: 11,229
A81: 766.204 (a)(5) | B81: Security Agreement - SA amortization lien on all assets | G81: FSA-2028 | H81: 67 | I81: 1.000 | J81: 67 | K81: 0.333 | M81: 22 | Q81: $98.21 | R81: 2,193
A82: 764.103(b)(1) | B82: RE mortgage/deed of trust - pledge from 3rd party | G82: FSA-2029M, FSA-2029D | H82: 207 | I82: 1.000 | J82: 207 | K82: =30/60 -> 0.500 | M82: 104 | Q82: $98.21 | R82: 10,165
A83: 764.103 (c) | B83: RE mortgage/deed of trust - 150% requirement | G83: FSA-2029M, FSA-2029D | H83: 7,712 | I83: 1.000 | J83: 7,712 | K83: =30/60 -> 0.500 | M83: 3,856 | Q83: $98.21 | R83: 378,698
A84: 764.103 (e) | B84: RE mortgage/deed of trust - lien on nonessential assets | G84: FSA-2029M, FSA-2029D | H84: 595 | I84: 1.000 | J84: 595 | K84: 0.500 | M84: 298 | Q84: $98.21 | R84: 29,217
A85: 764.155 (b) | B85: RE mortgage/deed of trust - RE financed w/ FO funds | G85: FSA-2029M, FSA-2029D | H85: 3,045 | I85: 1.000 | J85: 3,045 | K85: 0.500 | M85: 1,523 | Q85: $98.21 | R85: 149,525
A86: 764.205 (b) | B86: RE mortgage/deed of trust - RE financed w/ BFDP funds | G86: FSA-2029M, FSA-2029D | H86: 156 | I86: 1.000 | J86: 156 | K86: 0.500 | M86: 78 | Q86: $98.21 | R86: 7,660
A87: 764.353 (c) | B87: RE mortgage/deed of trust - EM physical loss | G87: FSA-2029M, FSA-2029D | H87: 154 | I87: 1.000 | J87: 154 | K87: 0.500 | M87: 77 | Q87: $98.21 | R87: 7,562
A88: 765.205 (b) | B88: RE mortgage/deed of trust - subordination w/ purchase | G88: FSA-2029M, FSA-2029D | H88: 224 | I88: 1.000 | J88: 224 | K88: 0.500 | M88: 112 | Q88: $98.21 | R88: 11,000
A89: 765.352 (a) | B89: RE mortgage/deed of trust - proceeds used to develop | G89: FSA-2029M, FSA-2029D | H89: 82 | I89: 1.000 | J89: 82 | K89: 0.500 | M89: 41 | Q89: $98.21 | R89: 4,027
A90: 766.56 | B90: RE mortgage/deed of trust - delinquent DSA lien on assets | G90: FSA-2029M, FSA-2029D | H90: 54 | I90: 1.000 | J90: 54 | K90: 0.500 | M90: 27 | Q90: $98.21 | R90: 2,652
A91: 766.112 (a) | B91: RE mortgage/deed of trust - PLS lien on all assets | G91: FSA-2029M, FSA-2029D | H91: 730 | I91: 1.000 | J91: 730 | K91: 0.500 | M91: 365 | Q91: $98.21 | R91: 35,847
A92: 766.204 (a) | B92: RE mortgage/deed of trust - SA amortization lien on all assets | G92: FSA-2029M, FSA-2029D | H92: 72 | I92: 1.000 | J92: 72 | K92: 0.500 | M92: 36 | Q92: $98.21 | R92: 3,536
A93: 764.402, 764.303 | B93: Assignment of proceeds & consent to payment - applicant | G93: FSA-2041, FSA-2042 | H93: 7,062 | I93: 1.000 | J93: 7,062 | K93: =20/60 -> 0.333 | M93: 2,354 | Q93: $98.21 | R93: 231,186
A94: 764.402, 764.304 | B94: Assignment of proceeds & consent to payment - purchaser | G94: FSA-2041, FSA-2043 | H94: 2,341 | I94: 3.000 | J94: 7,023 | K94: =20/60 -> 0.333 | M94: 2,341 | Q94: $98.21 | R94: 229,910 | S94: *
A95: 764.402 | B95: Assignment of dairy proceeds - applicant | G95: FSA-2043 | H95: 3,345 | I95: 1.000 | J95: 3,345 | K95: =20/60 -> 0.333 | M95: 1,115 | Q95: $98.21 | R95: 109,504
A96: 764.402 | B96: Assignment of dairy proceeds - purchaser | G96: FSA-2044 | H96: 1,105 | I96: 3.000 | J96: 3,315 | K96: =20/60 -> 0.333 | M96: 1,105 | Q96: $98.21 | R96: 108,522 | S96: *
A97: 764.402, 765.252 | B97: Assignment of income (includes mineral leases) | G97: FSA-2044 | H97: 1,995 | I97: 1.000 | J97: 1,995 | K97: =20/60 -> 0.333 | M97: 665 | Q97: $98.21 | R97: 65,310
A98: 764.51 | B98: Request for youth loan - applicant | G98: FSA-2301 | H98: 4,410 | I98: 1.000 | J98: 4,410 | K98: =30/60 -> 0.500 | M98: 2,205 | Q98: $98.21 | R98: 216,553 | S98: *
A99: 764.302(e) | B99: Request for youth loan - advisor | G99: FSA-2301 | H99: 2,652 | I99: 1.620 | J99: 4,296 | K99: =10/60 -> 0.167 | M99: 716 | Q99: $98.21 | R99: 70,322 | S99: *
A100: 764.302(f) | B100: Request for youth loan - parent/guardian | G100: FSA-2301 | H100: 4,044 | I100: 1.000 | J100: 4,044 | K100: =10/60 -> 0.167 | M100: 674 | Q100: $98.21 | R100: 66,194 | S100: *
A101: 764.51(b)(14) | B101: Certification of disaster losses | G101: FSA-2309 | H101: 1,361 | I101: 1.000 | J101: 1,361 | K101: =90/60 -> 1.500 | M101: 2,042 | Q101: $98.21 | R101: 200,496
A102: 764.352(e) | B102: Lender's verification of loan application - individual | G102: FSA-2310 | H102: 1,232 | I102: 1.000 | J102: 1,232 | K102: =5/60 -> 0.083 | M102: 103 | Q102: $98.21 | R102: 10,083
A103: 764.352(e) | B103: Lender's verification of loan application - entity members | G103: FSA-2310 | H103: 379 | I103: 1.000 | J103: 379 | K103: =5/60 -> 0.083 | M103: 32 | Q103: $98.21 | R103: 3,102
A104: 764.352(e) | B104: Lender's verification of loan application - lender | G104: FSA-2310 | H104: 877 | I104: 2.000 | J104: 1,754 | K104: =30/60 -> 0.500 | M104: 877 | Q104: $98.21 | R104: 86,130 | S104: *
A105: 764.401(a) | B105: Notification of loan approval and conditions | G105: FSA-2313 | H105: 26,350 | I105: 1.000 | J105: 26,350 | K105: =20/60 -> 0.333 | M105: 8,783 | Q105: $98.21 | R105: 862,611
A106: 764.51(c) | B106: Request for Streamlined loan making assistance/LM - Individual | G106: FSA-2314 | H106: 5,000 | I106: 0.756 | J106: 3,780 | K106: =30/60 -> 0.500 | M106: 1,890 | Q106: $98.21 | R106: 185,617 | S106: *
A107: 764.51(c) | B107: Request for Streamlined loan making assistance - LM-Entity | G107: FSA-2314 | H107: 14 | I107: 0.333 | J107: 5 | K107: =60/60 -> 1.000 | M107: 5 | Q107: $98.21 | R107: 458 | S107: *
A108: 764.255 (b) | B108: Consent and subordination - applicant | G108: FSA-2317 | H108: 192 | I108: 1.000 | J108: 192 | K108: =15/60 -> 0.250 | M108: 48 | Q108: $98.21 | R108: 4,714
A109: 764.255 (b) | B109: Consent and subordination - lender | G109: FSA-2317 | H109: 194 | I109: 1.000 | J109: 194 | K109: =15/60 -> 0.250 | M109: 49 | Q109: $98.21 | R109: 4,763 | S109: *
A110: 764.402(c) | B110: Agreement for disposition of jointly-owned property | G110: FSA-2318 | H110: 118 | I110: 1.000 | J110: 118 | K110: =10/60 -> 0.167 | M110: 20 | Q110: $98.21 | R110: 1,931
A111: 764.104(a)(2) | B111: Agreement with prior lienholder | G111: FSA-2319 | H111: 1,535 | I111: 1.000 | J111: 1,535 | K111: =10/60 -> 0.167 | M111: 256 | Q111: $98.21 | R111: 25,125 | S111: *
A112: 1436.8 | B112: Agreement with prior lienholder - FSFL | G112: FSA-2320 | H112: 800 | I112: 1.000 | J112: 800 | K112: =10/60 -> 0.167 | L112: =SUM(J112*K112) -> 133 | M112: 0 | Q112: $98.21 | R112: 0 | S112: *
A113: 764.108 | B113: Property Insurance mortgage clause | G113: FSA-2320 | H113: 12 | I113: 1.000 | J113: 12 | K113: =10/60 -> 0.167 | M113: 2 | Q113: $98.21 | R113: 196 | S113: *
A114: 764.402, 765.205 | B114: Selection of attorney/title agent | G114: FSA-2340 | H114: 4,833 | I114: 1.000 | J114: 4,833 | K114: =10/60 -> 0.167 | M114: 806 | Q114: $98.21 | R114: 79,108
A115: 764.402, 765.205 | B115: Certification of attorney/title company | G115: FSA-2341, FSA-2342 | H115: 2,850 | I115: 1.000 | J115: 2,850 | K115: =20/60 -> 0.333 | M115: 950 | Q115: $98.21 | R115: 93,300 | S115: *
A116: 764.402, 765.205 | B116: Preliminary title opinion | G116: FSA-2344 | H116: 2,725 | I116: 1.490 | J116: 4,060 | K116: =90/60 -> 1.500 | M116: 6,090 | Q116: $98.21 | R116: 598,136
A117: 764.402 | B117: Loan closing instructions | G117: FSA-2350 | H117: 2,455 | I117: 1.490 | J117: 3,658 | K117: =30/60 -> 0.500 | M117: 1,829 | Q117: $98.21 | R117: 179,624
A118: 764.402, 765.205 | B118: Certification of improvement of property | G118: FSA-2351 | H118: 491 | I118: 1.000 | J118: 491 | K118: =10/60 -> 0.167 | M118: 82 | Q118: $98.21 | R118: 8,037 | S118: *
A119: 764.402, 765.206 | B119: Final title opinion | G119: FSA-2352 | H119: 2,445 | I119: 1.490 | J119: 3,643 | K119: =30/60 -> 0.500 | M119: 1,822 | Q119: $98.21 | R119: 178,892
A120: 764.402 | B120: Report of lien search | G120: FSA-2360 | H120: 607 | I120: 1.000 | J120: 607 | K120: =30/60 -> 0.500 | M120: 304 | Q120: $98.21 | R120: 29,807 | S120: *
A121: 1436.8 | B121: Report of lien search - FSFL | G121: FSA-2360 | H121: 1,500 | I121: 1.000 | J121: 1,500 | K121: =30/60 -> 0.500 | L121: =SUM(J121*K121) -> 750 | M121: 0 | Q121: $98.21 | R121: 0 | S121: *
A122: 764.255 | B122: Subordination to the Government | G122: FSA-2361 | H122: 545 | I122: 1.000 | J122: 545 | K122: =30/60 -> 0.500 | M122: 273 | Q122: $98.21 | R122: 26,762 | S122: *
A123: 764.453 | B123: Requiest for Waiver of Borrower Training Requirements | G123: FSA-2370 | H123: 9,323 | I123: 1.000 | J123: 9,323 | K123: =30/60 -> 0.500 | M123: 4,662 | Q123: $98.21 | R123: 457,806
A124: 764.452 | B124: Agreement to Complete Training | G124: FSA-2371 | H124: 8,306 | I124: 1.000 | J124: 8,306 | K124: =15/60 -> 0.250 | M124: 2,077 | Q124: $98.21 | R124: 203,933
A125: 764.458 | B125: Agreement to Conduct Production and/or Financial Training | G125: FSA-2375 | H125: 145 | I125: 1.000 | J125: 145 | K125: =10/60 -> 0.167 | M125: 24 | Q125: $98.21 | R125: 2,373 | S125: *
A126: 764.454 | B126: Borrower training course evaluation - borrower | G126: FSA-2376 | H126: 3,972 | I126: 1.000 | J126: 3,972 | K126: =15/60 -> 0.250 | M126: 993 | Q126: $98.21 | R126: 97,523
A127: 764.454 | B127: Borrower training course evaluation - vendor | G127: FSA-2376 | H127: 356 | I127: 10.390 | J127: 3,699 | K127: =30/60 -> 0.500 | M127: 1,849 | Q127: $98.21 | R127: 181,632
A128: 764.51 (b)(6) | B128: Documentation other credit is not available - lender | G128: Non-form | H128: 5,946 | I128: 3.140 | J128: 18,670 | K128: =60/60 -> 1.000 | M128: 18,670 | Q128: $98.21 | R128: 1,833,624 | S128: *
A129: 764.51 (b)(10) | B129: Copy of legal description of RE to purchase, leases, agreements | G129: Non-form | H129: 13,560 | I129: 1.000 | J129: 13,560 | K129: =15/60 -> 0.250 | M129: 3,390 | Q129: $98.21 | R129: 332,932
A130: 764.51 (b)(13) | B130: Information needed to evaluate application | G130: Non-form | H130: 1,255 | I130: 1.000 | J130: 1,255 | K130: =15/60 -> 0.250 | M130: 314 | Q130: $98.21 | R130: 30,813
A131: 764.53 (e) | B131: Request to keep application active (funds not available) | G131: Non-form | H131: 28 | I131: 1.000 | J131: 28 | K131: =10/60 -> 0.167 | M131: 5 | Q131: $98.21 | R131: 458
A132: 764.101 | B132: Citizenship status documentation | G132: Non-form | H132: 22 | I132: 1.000 | J132: 22 | K132: =15/60 -> 0.250 | M132: 6 | Q132: $98.21 | R132: 540
A133: 764.104 (b)(2) | B133: Contract for sale - agreement to use insurance proceeds | G133: Non-form | H133: 19 | I133: 1.000 | J133: 19 | K133: =15/60 -> 0.250 | M133: 5 | Q133: $98.21 | R133: 466
A134: 764.104 (b)(5) | B134: Purchase contract holder agreement | G134: Non-form | H134: 19 | I134: 1.000 | J134: 19 | K134: =15/60 -> 0.250 | M134: 5 | Q134: $98.21 | R134: 466
A135: 764.104 (c) | B135: Request to BIA to provide title status report | G135: Non-form | H135: 12 | I135: 1.000 | J135: 12 | K135: =30/60 -> 0.500 | M135: =SUM(J135*K135) -> 6 | Q135: $98.21 | R135: 589
A136: 764.108 | B136: Evidence of hazard insurance | G136: Non-form | H136: 12,454 | I136: 1.000 | J136: 12,454 | K136: =15/60 -> 0.250 | M136: 3,114 | Q136: $98.21 | R136: 305,777
A137: 764.108 | B137: Evidence of flood insurance | G137: Non-form | H137: 11,500 | I137: 1.000 | J137: 11,500 | K137: 0.250 | M137: 2,875 | Q137: $98.21 | R137: 282,354
A138: 764.108 | B138: Evidence of crop insurance | G138: Non-form | H138: 15,150 | I138: 1.000 | J138: 15,150 | K138: 0.250 | M138: 3,788 | Q138: $98.21 | R138: =SUM(M138*Q138) -> 371,970
A139: 764.108 (d) | B139: Waiver of eligibility for emergency crop loss assistance | G139: Non-form | H139: 545 | I139: 1.000 | J139: 545 | K139: 0.250 | M139: 136 | Q139: $98.21 | R139: 13,381
A140: 764.151 (e) | B140: Evidence to refinance bridge FO loan | G140: Non-form | H140: 104 | I140: 1.000 | J140: 104 | K140: 0.250 | M140: 26 | Q140: $98.21 | R140: 2,553
A141: 764.255 | B141: Obtaining branded livestock and feeder cattle agreement | G141: Non-form | H141: 347 | I141: 1.000 | J141: 347 | K141: 0.250 | M141: 87 | Q141: $98.21 | R141: 8,520
A142: 764.255 | B142: Lien on motor vehicles | G142: Non-form | H142: 69 | I142: 1.000 | J142: 69 | K142: 0.250 | M142: 17 | Q142: $98.21 | R142: 1,694
A143: 764.352 (c) | B143: EM RE purposes - lease exceeds loan term | G143: Non-form | H143: 12 | I143: 1.000 | J143: 12 | K143: 0.250 | M143: 3 | Q143: $98.21 | R143: 295
A144: 764.352 (c) | B144: EM RE purposes - notification of lease's expiration | G144: Non-form | H144: 10 | I144: 1.000 | J144: 10 | K144: 0.250 | M144: 3 | Q144: $98.21 | R144: 246
A145: 764.352 (e) | B145: Written declination of credit - EM applicants | G145: Non-form | H145: 292 | I145: 2.000 | J145: 584 | K145: =15/60 -> 0.250 | M145: 146 | Q145: $98.21 | R145: 14,339
A146: 764.352 (e) | B146: Written declination of credit - EM - lender | G146: Non-form | H146: 190 | I146: 3.080 | J146: 585 | K146: =30/60 -> 0.500 | M146: 293 | Q146: $98.21 | R146: 28,736 | S146: *
A147: 764.353, 764.356 | B147: Documentation of losses of livestock/livestock products | G147: Non-form | H147: 172 | I147: 1.000 | J147: 172 | K147: =15/60 -> 0.250 | M147: 43 | Q147: $98.21 | R147: 4,223
A148: 764.355 (c) | B148: EM - repayment ability when security not available | G148: Non-form | H148: 12 | I148: 1.000 | J148: 12 | K148: =15/60 -> 0.250 | M148: 3 | Q148: $98.21 | R148: 295
A149: 764.355 (3) | B149: Certificate of title for EM | G149: Non-form | H149: 62 | I149: 1.000 | J149: 62 | K149: =15/60 -> 0.250 | M149: 16 | Q149: $98.21 | R149: 1,522
A150: 764.454 (a)(2) | B150: Circumstances beyond borrower's control for not completing BT | G150: Non-form | H150: 390 | I150: 1.000 | J150: 390 | K150: =15/60 -> 0.250 | M150: 98 | Q150: $98.21 | R150: 9,575
A151: 764.456 | B151: Vendor application for approval to provide borrower training | G151: Non-form | H151: 41 | I151: 1.000 | J151: 41 | K151: =990/60 -> 16.500 | M151: 677 | Q151: $98.21 | R151: 66,439 | S151: *
A152: 764.458 | B152: Vendor request to change curriculum, instructor or cost | G152: Non-form | H152: 16 | I152: 1.000 | J152: 16 | K152: =30/60 -> 0.500 | M152: 8 | Q152: $98.21 | R152: 786
A153: 764.458 (a)(4) | B153: Vendor revocation of agreement to provide borrower training | G153: Non-form | H153: 11 | I153: 1.000 | J153: 11 | K153: =15/60 -> 0.250 | M153: 3 | Q153: $98.21 | R153: 270
A154: 764.458 (b) | B154: Renewal of vendor approval to provide borrower training | G154: Non-form | H154: 133 | I154: 1.000 | J154: 133 | K154: =390/60 -> 6.500 | M154: 865 | Q154: $98.21 | R154: 84,903 | S154: *
A155: 764.459 | B155: Vendor evalutation of borrower progress | G155: Non-form | H155: 396 | I155: 6.720 | J155: 2,661 | K155: =30/60 -> 0.500 | M155: 1,331 | Q155: $98.21 | R155: 130,674
A156: 765.205, 766.106 | B156: RE mortgage/modification agreement | G156: Non-form | H156: 973 | I156: 1.000 | J156: 973 | K156: =30/60 -> 0.500 | M156: 487 | Q156: $98.21 | R156: 47,779
A157: 764.51 (b)(15) | B157: Conservation Plan | G157: Non-form | H157: 1,612 | I157: 1.000 | J157: 1,612 | K157: =15/60 -> 0.250 | M157: 403 | Q157: $98.21 | R157: 39,579
A158: 764.51 (b)(16) | B158: Transisition to Organic/sustainable | G158: Non-form | H158: 9 | I158: 1.000 | J158: 9 | K158: =15/60 -> 0.250 | M158: 2 | Q158: $98.21 | R158: 221
A159: 764.51 (b)(2) | B159: Entity information - loan application | G159: Non-form | H159: 672 | I159: 1.000 | J159: 672 | K159: =15/60 -> 0.250 | M159: 168 | Q159: $98.21 | R159: 16,499
A160: 764.51 (b)(6) | B160: Documention other credit is not available - applicant | G160: Non-form | H160: 19,110 | I160: 1.000 | J160: 19,110 | K160: =60/60 -> 1.000 | M160: 19,110 | Q160: $98.21 | R160: 1,876,793
B161: SUBTOTAL | J161: =SUM(J20:J160) -> 611,359 | L161: =SUM(L20:L40) -> 518 | M161: =SUM(M20:M160) -> 295,850 | P161: =SUM(P20:P160) -> 0.00 | R161: =SUM(R20:R160) -> 29,055,449 | S161: =SUMIF(S20:S160,"*",H20:H160) -> 177394
B162: TOTAL OF ALL PAGES | J162: =SUM(J161) -> 611,359 | L162: =SUM(L161) -> 518 | M162: =SUM(M161) -> 295,850 | P162: =SUM(P161) -> 0.00 | R162: =SUM(R161) -> 29,055,449
A163: TOTAL - COLUMNS "F" AND "I" = OMB 83-I, 13b; COLUMNS "H" AND "K" = OMB 83-I, 13c | J163: =SUM(J162+N162) -> 611,359 | M163: =SUM(M162+P162) -> 295,850
A166: Est Respondents | B166: =S161 -> 177,394
A167: Resp/Respondent | B167: =J161/B166 -> 3.45
A168: Est Total Resp | B168: =J162 -> 611,359
A169: Avg Time/Resp | B169: =B170/B168 -> 0.484
A170: Est Total Burden | B170: =M163 -> 295,850
